fUSD/lending_fUSD_20260214
["ID","MTS","AMOUNT","RATE_DAILY","PERIOD"]
[405381955,1771108249738,-150.0,0.00024658,2]
[405381956,1771108249747,-208.41883888,0.00025,7]
[405381957,1771108249757,-1115.03920688,0.00025,2]
[405381958,1771108249766,-207.73305402,0.00025,2]
[405381959,1771108249775,-1786.65920362,0.00025,2]
[405381960,1771108249785,-18493.42970553,0.00025,2]
[405381961,1771108249794,-540.0,0.00025,2]
[405381962,1771108249803,-611.55860463,0.00025,2]
[405381963,1771108249813,-3047.55243786,0.00025,2]
[405381964,1771108249822,-7133.16575649,0.00025,2]
[405381965,1771108249831,-167.50187292,0.00025,2]
[405381966,1771108249841,-475.78,0.00025261,120]
[405381967,1771108249850,-49582.97674312,0.0002539,2]
[405381968,1771108249859,-1000.0,0.00025468,2]
[405381969,1771108249868,-156.7,0.00025601,2]
[405381970,1771108249877,-150.0,0.0002589,2]
[405381971,1771108249887,-601.59122218,0.0002599,2]
[405381972,1771108249896,-1746.61,0.00025998,2]
[405381973,1771108249906,-4528.07574312,0.00026,2]
[405381974,1771108249916,-216.73517412,0.00026,2]
[405381975,1771108249925,-512.0,0.00026176,8]
[405381976,1771108249935,-27507.8235191,0.000264,2]
[405381977,1771108249944,-250.0,0.00027,2]
[405381978,1771108249954,-1035.85070135,0.00027,2]
[405381979,1771108249963,-530.0,0.00027,2]
[405381980,1771108249973,-15281.6987719,0.00027119,2]
[405381981,1771108249982,-150.0,0.00027185,2]
[405381982,1771108249991,-150.0,0.00027369,2]
[405381983,1771108250000,-4116.34794813,0.0002739,2]
[405381984,1771108250010,-8132.89604824,0.0002739,2]
[405381985,1771108250019,-1179.78,0.00027397,30]
[405381986,1771108250028,-520.22,0.00027397,2]
[405381987,1771108250037,-500.0,0.00027397,20]
[405381988,1771108250047,-199.33624367,0.00027397,17]
[405381989,1771108250056,-300.0,0.00027397,2]
[405381990,1771108250065,-166.93,0.000274,7]
[405381991,1771108250075,-201.56457386,0.000275,2]
[405381992,1771108250085,-550.62857574,0.000275,2]
[405381993,1771108250095,-50941.77173433,0.00028,2]
[405381994,1771108250104,-160.0,0.00028,2]
[405381995,1771108250113,-1208.0,0.00028006,2]
[405381996,1771108250122,-919.745,0.00028006,2]
[405381997,1771108250132,-644.206,0.00028006,2]
[405381998,1771108250141,-3489.0,0.00028006,2]
[405381999,1771108250150,-617.0,0.00028006,2]
[405382000,1771108250159,-150.0,0.00028544,2]
[405382001,1771108250169,-981.52828018,0.00029,2]
[405382002,1771108250178,-503.22215546,0.00029,2]
[405382003,1771108250188,-164.757,0.00029167,2]
[405382004,1771108250198,-1192.61428547,0.00029698,2]
[405382005,1771108250207,-512.0,0.00029765,12]
[405382006,1771108250216,-3000.0,0.00029876,3]
[405382007,1771108250226,-79060.51334751,0.000299,2]
[405382008,1771108250235,-150.0,0.00029971,2]
[405382009,1771108250245,-237.79084971,0.0002999,2]
[405382010,1771108250254,-19913.46866818,0.0003,2]
[405382011,1771108250263,-1821.94762268,0.0003,2]
[405382012,1771108250272,-163.42691815,0.0003,2]
[405382013,1771108250283,-152.62,0.0003,2]
[405382014,1771108250292,-152.62,0.0003,2]
[405382015,1771108250304,-152.62,0.0003,2]
[405382016,1771108250314,-152.62,0.0003,2]
[405382017,1771108250324,-152.62,0.0003,2]
[405382018,1771108250333,-152.62,0.0003,2]
[405382019,1771108250343,-152.62,0.0003,2]
[405382020,1771108250352,-152.62,0.0003,2]
[405382021,1771108250362,-152.62,0.0003,2]
[405382022,1771108250371,-152.62,0.0003,2]
[405382023,1771108250380,-152.62,0.0003,2]
[405382024,1771108250389,-152.62,0.0003,2]
[405382025,1771108250399,-152.62,0.0003,2]
[405382026,1771108250408,-152.62,0.0003,2]
[405382027,1771108250418,-152.62,0.0003,2]
[405382028,1771108250427,-152.62,0.0003,2]
[405382029,1771108250436,-152.62,0.0003,2]
[405382030,1771108250446,-152.62,0.0003,2]
[405382031,1771108250456,-152.62,0.0003,2]
[405382032,1771108250465,-152.62,0.0003,2]
[405382033,1771108250475,-152.62,0.0003,2]
[405382034,1771108250484,-152.62,0.0003,2]
[405382035,1771108250494,-152.62,0.0003,2]
[405382036,1771108250503,-152.62,0.0003,2]
[405382037,1771108250512,-152.62,0.0003,2]
[405382038,1771108250525,-152.62,0.0003,2]
[405382039,1771108250535,-152.62,0.0003,2]
[405382040,1771108250544,-152.62,0.0003,2]
[405382041,1771108250553,-152.62,0.0003,2]
[405382042,1771108250563,-152.62,0.0003,2]
[405382043,1771108250573,-152.62,0.0003,2]
[405382044,1771108250582,-152.62,0.0003,2]
[405382045,1771108250593,-152.62,0.0003,2]
[405382046,1771108250603,-152.62,0.0003,2]
[405382047,1771108250613,-152.62,0.0003,2]
[405382048,1771108250622,-152.62,0.0003,2]
[405382049,1771108250632,-1076.34927147,0.0003013,2]
[405382050,1771108250642,-13222.13582819,0.0003013,2]
[405382051,1771108250651,-635.63486428,0.0003013,2]
[405382052,1771108250661,-202.21128949,0.0003013,2]
[405382053,1771108250670,-7749.87108306,0.0003013,2]
[405382054,1771108250681,-167.33,0.00030137,2]
[405382055,1771108250691,-14064.503455,0.000302,2]
[405382056,1771108250701,-1612.68709395,0.0003084,2]
[405382057,1771108250712,-79200.06155536,0.0003095,2]
[405382058,1771108250722,-51682.43883475,0.00031,2]
[405382059,1771108250732,-3964.04619504,0.00031,2]
[405382060,1771108250742,-1208.0,0.00031006,2]
[405382061,1771108250751,-918.0,0.00031006,2]
[405382062,1771108250761,-3489.0,0.00031006,2]
[405382063,1771108250771,-617.0,0.00031006,2]
[405382064,1771108250782,-1179.78,0.0003105,30]
[405382065,1771108250792,-150.0,0.0003147,2]
[405382066,1771108250802,-197.82422275,0.000315,2]
[405382067,1771108250812,-150.0,0.000315,2]
[405382068,1771108250822,-158.26,0.00031766,14]
[405382069,1771108250831,-896.37271953,0.000323,2]
[405382070,1771108250840,-4841.97542565,0.000328,2]
[405382071,1771108250849,-203.189973,0.00032815,30]
[405382072,1771108250859,-500.67926273,0.00032877,2]
[405382073,1771108250868,-99635.55,0.000329,14]
[405382074,1771108250877,-344.82,0.00033,14]
[405382075,1771108250887,-392.53,0.00033,14]
[405382076,1771108250896,-1117.92,0.00033,2]
[405382077,1771108250907,-51422.43077272,0.00033,2]
[405382078,1771108250916,-26442.50483693,0.00033,2]
[405382079,1771108250925,-153.92680056,0.00033,2]
[405382080,1771108250935,-150.0,0.00033043,2]
[405382081,1771108250944,-512.0,0.00033353,15]
[405382082,1771108250955,-4023.25850565,0.00033498,5]
[405382083,1771108250964,-1214.43126328,0.000335,2]
[405382084,1771108250973,-1208.0,0.00034006,2]
[405382085,1771108250983,-918.0,0.00034006,2]
[405382086,1771108250992,-3489.0,0.00034006,2]
[405382087,1771108251001,-617.0,0.00034006,2]
[405382088,1771108251011,-1000.0,0.00034162,2]
[405382089,1771108251022,-1000.0,0.00034162,2]
[405382090,1771108251031,-1000.0,0.00034162,2]
[405382091,1771108251040,-1000.0,0.00034162,2]
[405382092,1771108251050,-1000.0,0.00034162,2]
[405382093,1771108251060,-150.0,0.00034696,2]
[405382094,1771108251069,-1179.78,0.00034703,30]
[405382095,1771108251079,-1500.0,0.00034795,2]
[405382096,1771108251088,-17420.7841619,0.00035,8]
[405382097,1771108251097,-1117.92,0.000355,2]
[405382098,1771108251107,-1770.88208098,0.000356,120]
[405382099,1771108251117,-99635.55,0.000356,14]
[405382100,1771108251126,-167.33,0.00035616,2]
[405382101,1771108251136,-795.44651915,0.00035896,7]
[405382102,1771108251145,-2000.0,0.000359,2]
[405382103,1771108251155,-344.82,0.000362,14]
[405382104,1771108251165,-392.53,0.000362,14]
[405382105,1771108251175,-150.0,0.0003643,2]
[405382106,1771108251186,-4000.0,0.00036748,10]
[405382107,1771108251197,-512.0,0.00036941,19]
[405382108,1771108251208,-151.0,0.00036986,2]
[405382109,1771108251217,-170.89273,0.00036986,2]
[405382110,1771108251227,-170.89273,0.00036986,2]
[405382111,1771108251237,-170.89273,0.00036986,2]
[405382112,1771108251246,-170.89273,0.00036986,2]
[405382113,1771108251256,-170.89273,0.00036986,2]
[405382114,1771108251265,-170.89273,0.00036986,2]
[405382115,1771108251274,-170.89273,0.00036986,2]
[405382116,1771108251284,-170.89273,0.00036986,2]
[405382117,1771108251293,-170.89273,0.00036986,2]
[405382118,1771108251303,-170.89273,0.00036986,2]
[405382119,1771108251312,-170.89273,0.00036986,2]
[405382120,1771108251322,-170.89273,0.00036986,2]
[405382121,1771108251331,-170.89273,0.00036986,2]
[405382122,1771108251340,-170.89273,0.00036986,2]
[405382123,1771108251350,-170.89273,0.00036986,2]
[405382124,1771108251360,-170.89273,0.00036986,2]
[405382125,1771108251369,-170.89273,0.00036986,2]
[405382126,1771108251379,-170.89273,0.00036986,2]
[405382127,1771108251389,-170.89273,0.00036986,2]
[405382128,1771108251398,-170.892722,0.00036986,2]
[405382129,1771108251408,-151.0,0.00036986,31]
[405382130,1771108251418,-151.0,0.00036986,31]
[405382131,1771108251429,-151.0,0.00036986,31]
[405382132,1771108251438,-151.0,0.00036986,31]
[405382133,1771108251448,-151.0,0.00036986,31]
[405382134,1771108251457,-151.0,0.00036986,31]
[405382135,1771108251466,-151.0,0.00036986,31]
[405382136,1771108251476,-151.0,0.00036986,31]
[405382137,1771108251486,-151.0,0.00036986,31]
[405382138,1771108251498,-151.0,0.00036986,31]
[405382139,1771108251507,-151.0,0.00036986,31]
[405382140,1771108251518,-151.0,0.00036986,31]
[405382141,1771108251531,-151.0,0.00036986,31]
[405382142,1771108251540,-151.0,0.00036986,31]
[405382143,1771108251550,-151.0,0.00036986,31]
[405382144,1771108251559,-151.0,0.00036986,31]
[405382145,1771108251570,-226.697471,0.00036986,31]
[405382146,1771108251580,-261.056238,0.00036986,31]
[405382147,1771108251589,-261.056238,0.00036986,31]
[405382148,1771108251600,-261.056238,0.00036986,31]
[405382149,1771108251610,-261.056238,0.00036986,31]
[405382150,1771108251619,-261.056238,0.00036986,31]
[405382151,1771108251629,-261.056238,0.00036986,31]
[405382152,1771108251639,-261.056238,0.00036986,31]
[405382153,1771108251648,-261.056238,0.00036986,31]
[405382154,1771108251658,-261.056238,0.00036986,31]
[405382155,1771108251667,-261.056238,0.00036986,31]
[405382156,1771108251677,-261.056238,0.00036986,31]
[405382157,1771108251686,-261.056238,0.00036986,31]
[405382158,1771108251696,-261.056238,0.00036986,31]
[405382159,1771108251704,-261.056238,0.00036986,31]
[405382160,1771108251714,-261.056238,0.00036986,31]
[405382161,1771108251724,-3000.0,0.00037,30]
[405382162,1771108251733,-398.128,0.00037006,2]
[405382163,1771108251743,-599.42,0.00037006,2]
[405382164,1771108251752,-1746.61,0.00037779,2]
[405382165,1771108251762,-154.35333021,0.00037863,30]
[405382166,1771108251773,-1117.92,0.000381,2]
[405382167,1771108251782,-99635.55,0.000381,14]
[405382168,1771108251792,-150.0,0.00038252,2]
[405382169,1771108251802,-154.35333021,0.00038301,30]
[405382170,1771108251811,-458.189006,0.00038356,9]
[405382171,1771108251820,-161.71116399,0.00038356,9]
[405382172,1771108251830,-500.0,0.00038356,9]
[405382173,1771108251840,-500.9565902,0.00038356,9]
[405382174,1771108251849,-604.05034329,0.00038356,9]
[405382175,1771108251858,-500.0,0.00038356,9]
[405382176,1771108251867,-500.0,0.00038356,9]
[405382177,1771108251877,-500.0,0.00038356,9]
[405382178,1771108251886,-503.45832364,0.00038356,9]
[405382179,1771108251897,-500.0,0.00038356,9]
[405382180,1771108251907,-507.25442039,0.00038356,9]
[405382181,1771108251916,-500.0,0.00038356,9]
[405382182,1771108251926,-500.0,0.00038356,9]
[405382183,1771108251935,-500.0,0.00038356,9]
[405382184,1771108251944,-500.0,0.00038356,9]
[405382185,1771108251953,-500.0,0.00038356,9]
[405382186,1771108251963,-500.0,0.00038356,9]
[405382187,1771108251973,-500.0,0.00038356,9]
[405382188,1771108251982,-178.45696124,0.00038356,9]
[405382189,1771108251994,-500.0,0.00038356,9]
[405382190,1771108252004,-500.0,0.00038356,9]
[405382191,1771108252014,-500.0,0.00038356,9]
[405382192,1771108252023,-500.0,0.00038356,9]
[405382193,1771108252033,-516.52976295,0.00038356,9]
[405382194,1771108252043,-500.0,0.00038356,9]
[405382195,1771108252053,-500.0,0.00038356,9]
[405382196,1771108252063,-501.61411931,0.00038356,9]
[405382197,1771108252073,-500.0,0.00038356,9]
[405382198,1771108252082,-500.0,0.00038356,9]
[405382199,1771108252092,-500.0,0.00038356,9]
[405382200,1771108252102,-500.0,0.00038356,9]
[405382201,1771108252111,-500.0,0.00038356,9]
[405382202,1771108252120,-500.0,0.00038356,9]
[405382203,1771108252130,-500.0,0.00038356,9]
[405382204,1771108252140,-570.53026194,0.00038356,9]
[405382205,1771108252150,-502.70929877,0.00038356,9]
[405382206,1771108252160,-500.0,0.00038356,9]
[405382207,1771108252170,-507.27009341,0.00038356,9]
[405382208,1771108252180,-523.44090469,0.00038356,9]
[405382209,1771108252190,-500.0,0.00038356,9]
[405382210,1771108252200,-500.0,0.00038356,9]
[405382211,1771108252210,-500.0,0.00038356,9]
[405382212,1771108252219,-500.0,0.00038356,9]
[405382213,1771108252229,-500.0,0.00038356,9]
[405382214,1771108252238,-233.36622653,0.00038356,9]
[405382215,1771108252248,-500.0,0.00038356,9]
[405382216,1771108252258,-503.73981569,0.00038356,9]
[405382217,1771108252267,-500.0,0.00038356,9]
[405382218,1771108252277,-500.0,0.00038356,9]
[405382219,1771108252286,-500.0,0.00038356,9]
[405382220,1771108252296,-500.0,0.00038356,9]
[405382221,1771108252305,-500.0,0.00038356,9]
[405382222,1771108252496,-500.0,0.00038356,9]
[405382223,1771108252506,-509.22134372,0.00038356,9]
[405382224,1771108252515,-518.27277326,0.00038356,9]
[405382225,1771108252529,-500.0,0.00038356,9]
[405382226,1771108252538,-504.16,0.00038356,9]
[405382227,1771108252548,-500.0,0.00038356,9]
[405382228,1771108252558,-500.0,0.00038356,9]
[405382229,1771108252568,-500.0,0.00038356,9]
[405382230,1771108252577,-500.0,0.00038356,9]
[405382231,1771108252586,-500.0,0.00038356,9]
[405382232,1771108252597,-500.0,0.00038356,9]
[405382233,1771108252607,-500.0,0.00038356,9]
[405382234,1771108252616,-500.0,0.00038356,9]
[405382235,1771108252626,-573.16143346,0.00038356,9]
[405382236,1771108252635,-503.98384274,0.00038356,9]
[405382237,1771108252645,-500.0,0.00038356,9]
[405382238,1771108252654,-500.0,0.00038356,2]
[405382239,1771108252664,-500.0,0.00038356,9]
[405382240,1771108252673,-519.2265626,0.00038356,9]
[405382241,1771108252682,-500.0,0.00038356,9]
[405382242,1771108252692,-500.0,0.00038356,9]
[405382243,1771108252702,-500.0,0.00038356,9]
[405382244,1771108252712,-506.69186955,0.00038356,9]
[405382245,1771108252721,-500.0,0.00038356,9]
[405382246,1771108252730,-290.40694561,0.00038356,9]
[405382247,1771108252742,-500.0,0.00038356,9]
[405382248,1771108252751,-500.0,0.00038356,9]
[405382249,1771108252760,-500.0,0.00038356,9]
[405382250,1771108252770,-506.22271994,0.00038356,9]
[405382251,1771108252779,-500.0,0.00038356,9]
[405382252,1771108252789,-500.0,0.00038356,9]
[405382253,1771108252799,-500.0,0.00038356,9]
[405382254,1771108252808,-500.0,0.00038356,9]
[405382255,1771108252817,-270.94543282,0.00038356,9]
[405382256,1771108252827,-500.0,0.00038356,9]
[405382257,1771108252836,-503.36883713,0.00038356,9]
[405382258,1771108252845,-500.0,0.00038356,9]
[405382259,1771108252855,-506.25677327,0.00038356,9]
[405382260,1771108252864,-502.80416207,0.00038356,9]
[405382261,1771108252873,-500.0,0.00038356,9]
[405382262,1771108252883,-500.0,0.00038356,9]
[405382263,1771108252892,-505.23406129,0.00038356,9]
[405382264,1771108252901,-500.0,0.00038356,9]
[405382265,1771108252910,-510.66280441,0.00038356,9]
[405382266,1771108252918,-500.0,0.00038356,9]
[405382267,1771108252926,-503.05846368,0.00038356,9]
[405382268,1771108252934,-500.0,0.00038356,9]
[405382269,1771108252942,-500.0,0.00038356,9]
[405382270,1771108252950,-500.0,0.00038356,9]
[405382271,1771108252959,-500.0,0.00038356,9]
[405382272,1771108252969,-504.31827312,0.00038356,9]
[405382273,1771108252978,-231.25367231,0.00038356,9]
[405382274,1771108252987,-504.1284761,0.00038356,9]
[405382275,1771108252996,-500.0,0.00038356,9]
[405382276,1771108253006,-500.0,0.00038356,9]
[405382277,1771108253015,-507.54005381,0.00038356,9]
[405382278,1771108253025,-500.0,0.00038356,9]
[405382279,1771108253035,-500.0,0.00038356,9]
[405382280,1771108253044,-500.0,0.00038356,9]
[405382281,1771108253052,-500.0,0.00038356,9]
[405382282,1771108253061,-500.0,0.00038356,9]
[405382283,1771108253069,-500.0,0.00038356,9]
[405382284,1771108253079,-500.0,0.00038356,9]
[405382285,1771108253088,-518.67799274,0.00038356,9]
[405382286,1771108253097,-500.0,0.00038356,9]
[405382287,1771108253107,-500.0,0.00038356,9]
[405382288,1771108253116,-500.0,0.00038356,9]
[405382289,1771108253125,-500.0,0.00038356,9]
[405382290,1771108253135,-500.0,0.00038356,9]
[405382291,1771108253144,-500.0,0.00038356,9]
[405382292,1771108253153,-199.33929298,0.00038356,9]
[405382293,1771108253163,-503.25628367,0.00038356,9]
[405382294,1771108253172,-500.0,0.00038356,9]
[405382295,1771108253182,-500.86370407,0.00038356,9]
[405382296,1771108253191,-500.0,0.00038356,9]
[405382297,1771108253201,-503.82216143,0.00038356,9]
[405382298,1771108253211,-500.0,0.00038356,9]
[405382299,1771108253221,-501.77053163,0.00038356,9]
[405382300,1771108253231,-500.0,0.00038356,9]
[405382301,1771108253241,-500.0,0.00038356,9]
[405382302,1771108253251,-500.0,0.00038356,9]
[405382303,1771108253261,-500.0,0.00038356,9]
[405382304,1771108253270,-503.01042185,0.00038356,9]
[405382305,1771108253280,-500.0,0.00038356,9]
[405382306,1771108253290,-503.48532303,0.00038356,9]
[405382307,1771108253300,-500.0,0.00038356,9]
[405382308,1771108253309,-500.0,0.00038356,9]
[405382309,1771108253319,-647.69470886,0.00038356,9]
[405382310,1771108253328,-504.33654359,0.00038356,9]
[405382311,1771108253337,-500.0,0.00038356,9]
[405382312,1771108253347,-508.13418665,0.00038356,9]
[405382313,1771108253357,-500.0,0.00038356,9]
[405382314,1771108253367,-500.0,0.00038356,9]
[405382315,1771108253377,-501.21386612,0.00038356,9]
[405382316,1771108253387,-523.23227097,0.00038356,9]
[405382317,1771108253397,-500.0,0.00038356,9]
[405382318,1771108253407,-500.0,0.00038356,9]
[405382319,1771108253417,-500.0,0.00038356,9]
[405382320,1771108253426,-500.0,0.00038356,9]
[405382321,1771108253436,-500.0,0.00038356,9]
[405382322,1771108253446,-500.0,0.00038356,9]
[405382323,1771108253457,-500.0,0.00038356,9]
[405382324,1771108253467,-500.0,0.00038356,9]
[405382325,1771108253477,-500.0,0.00038356,9]
[405382326,1771108253487,-505.09123089,0.00038356,9]
[405382327,1771108253497,-500.0,0.00038356,9]
[405382328,1771108253506,-500.0,0.00038356,9]
[405382329,1771108253517,-505.45013817,0.00038356,9]
[405382330,1771108253531,-500.0,0.00038356,9]
[405382331,1771108253541,-500.0,0.00038356,9]
[405382332,1771108253551,-500.0,0.00038356,9]
[405382333,1771108253562,-549.16280787,0.00038356,9]
[405382334,1771108253572,-500.0,0.00038356,9]
[405382335,1771108253582,-500.0,0.00038356,9]
[405382336,1771108253592,-500.0,0.00038356,9]
[405382337,1771108253601,-537.17733875,0.00038356,9]
[405382338,1771108253613,-500.0,0.00038356,9]
[405382339,1771108253622,-441.8871324,0.00038356,9]
[405382340,1771108253632,-500.0,0.00038356,9]
[405382341,1771108253641,-513.59127282,0.00038356,9]
[405382342,1771108253651,-637.25581468,0.00038356,9]
[405382343,1771108253660,-500.0,0.00038356,9]
[405382344,1771108253670,-500.0,0.00038356,9]
[405382345,1771108253680,-500.0,0.00038356,9]
[405382346,1771108253689,-528.38485796,0.00038356,9]
[405382347,1771108253699,-503.07052593,0.00038356,9]
[405382348,1771108253709,-500.0,0.00038356,9]
[405382349,1771108253719,-500.0,0.00038356,9]
[405382350,1771108253728,-500.0,0.00038356,9]
[405382351,1771108253738,-501.03696464,0.00038356,9]
[405382352,1771108253747,-500.0,0.00038356,9]
[405382353,1771108253757,-461.51764525,0.00038356,9]
[405382354,1771108253766,-500.0,0.00038356,9]
[405382355,1771108253776,-500.0,0.00038356,9]
[405382356,1771108253785,-501.37274405,0.00038356,9]
[405382357,1771108253795,-500.0,0.00038356,9]
[405382358,1771108253804,-500.0,0.00038356,9]
[405382359,1771108253814,-499.99650782,0.00038356,9]
[405382360,1771108253823,-500.0,0.00038356,9]
[405382361,1771108253832,-534.17736054,0.00038356,9]
[405382362,1771108253842,-500.0,0.00038356,9]
[405382363,1771108253852,-521.35714416,0.00038356,9]
[405382364,1771108253862,-511.275752,0.00038356,9]
[405382365,1771108253871,-317.56229895,0.00038356,9]
[405382366,1771108253880,-500.0,0.00038356,9]
[405382367,1771108253890,-509.99907387,0.00038356,9]
[405382368,1771108253899,-600.25,0.00038356,9]
[405382369,1771108253908,-500.0,0.00038356,9]
[405382370,1771108253918,-518.9251658,0.00038356,9]
[405382371,1771108253928,-500.0,0.00038356,9]
[405382372,1771108253937,-500.0,0.00038356,9]
[405382373,1771108253946,-504.40066487,0.00038356,9]
[405382374,1771108253955,-500.0,0.00038356,9]
[405382375,1771108253964,-500.0,0.00038356,9]
[405382376,1771108253973,-500.0,0.00038356,9]
[405382377,1771108253983,-515.66000338,0.00038356,9]
[405382378,1771108253993,-500.0,0.00038356,9]
[405382379,1771108254002,-500.0,0.00038356,9]
[405382380,1771108254011,-500.0,0.00038356,9]
[405382381,1771108254021,-530.07368561,0.00038356,9]
[405382382,1771108254031,-515.06493332,0.00038356,9]
[405382383,1771108254041,-500.0,0.00038356,9]
[405382384,1771108254050,-641.52162146,0.00038356,9]
[405382385,1771108254060,-510.00346429,0.00038356,9]
[405382386,1771108254069,-500.0,0.00038356,9]
[405382387,1771108254078,-500.0,0.00038356,9]
[405382388,1771108254087,-508.41116057,0.00038356,9]
[405382389,1771108254097,-500.0,0.00038356,9]
[405382390,1771108254106,-535.62048145,0.00038356,9]
[405382391,1771108254116,-314.43228009,0.00038356,9]
[405382392,1771108254125,-500.0,0.00038356,9]
[405382393,1771108254134,-512.47459171,0.00038356,9]
[405382394,1771108254144,-500.15019699,0.00038356,9]
[405382395,1771108254153,-527.26410092,0.00038356,9]
[405382396,1771108254162,-516.75274337,0.00038356,9]
[405382397,1771108254171,-500.0,0.00038356,9]
[405382398,1771108254180,-500.0,0.00038356,9]
[405382399,1771108254190,-512.67822449,0.00038356,9]
[405382400,1771108254199,-515.79046759,0.00038356,9]
[405382401,1771108254208,-500.0,0.00038356,9]
[405382402,1771108254217,-513.04002582,0.00038356,9]
[405382403,1771108254226,-500.0,0.00038356,9]
[405382404,1771108254237,-500.0,0.00038356,9]
[405382405,1771108254248,-501.26002611,0.00038356,9]
[405382406,1771108254257,-500.0,0.00038356,9]
[405382407,1771108254267,-520.03938819,0.00038356,9]
[405382408,1771108254277,-500.0,0.00038356,9]
[405382409,1771108254286,-500.0,0.00038356,9]
[405382410,1771108254296,-500.0,0.00038356,9]
[405382411,1771108254306,-500.84769744,0.00038356,9]
[405382412,1771108254317,-509.67855982,0.00038356,9]
[405382413,1771108254327,-500.0,0.00038356,9]
[405382414,1771108254339,-501.38879038,0.00038356,9]
[405382415,1771108254349,-500.16683726,0.00038356,9]
[405382416,1771108254358,-500.0,0.00038356,9]
[405382417,1771108254367,-500.0,0.00038356,9]
[405382418,1771108254377,-500.0,0.00038356,9]
[405382419,1771108254386,-505.56984701,0.00038356,9]
[405382420,1771108254396,-330.06457737,0.00038356,9]
[405382421,1771108254405,-507.1119946,0.00038356,9]
[405382422,1771108254414,-500.0,0.00038356,9]
[405382423,1771108254424,-1523.24,0.00038356,9]
[405382424,1771108254434,-404.77825019,0.00038356,9]
[405382425,1771108254443,-807.32,0.00038356,9]
[405382426,1771108254453,-500.0,0.00038356,9]
[405382427,1771108254462,-500.0,0.00038356,9]
[405382428,1771108254472,-532.83615617,0.00038356,9]
[405382429,1771108254481,-500.0,0.00038356,9]
[405382430,1771108254490,-500.0,0.00038356,120]
[405382431,1771108254500,-500.0,0.00038356,9]
[405382432,1771108254509,-500.0,0.00038356,9]
[405382433,1771108254521,-500.0,0.00038356,9]
[405382434,1771108254532,-507.3014434,0.00038356,9]
[405382435,1771108254541,-324.79387077,0.00038356,9]
[405382436,1771108254550,-415.09617162,0.00038356,9]
[405382437,1771108254559,-500.0,0.00038356,9]
[405382438,1771108254571,-509.97843534,0.00038356,9]
[405382439,1771108254580,-500.0,0.00038356,9]
[405382440,1771108254589,-500.0,0.00038356,9]
[405382441,1771108254601,-500.0,0.00038356,9]
[405382442,1771108254614,-500.0,0.00038356,9]
[405382443,1771108254627,-506.58561693,0.00038356,9]
[405382444,1771108254639,-500.0,0.00038356,9]
[405382445,1771108254652,-155.28511021,0.00038356,9]
[405382446,1771108254663,-500.0,0.00038356,9]
[405382447,1771108254674,-650.69,0.00038356,9]
[405382448,1771108254684,-500.0,0.00038356,9]
[405382449,1771108254695,-500.0,0.00038356,9]
[405382450,1771108254706,-1680.66,0.00038356,9]
[405382451,1771108254718,-6340.64,0.00038356,9]
[405382452,1771108254730,-500.0,0.00038356,9]
[405382453,1771108254741,-500.0,0.00038356,9]
[405382454,1771108254753,-500.0,0.00038356,9]